bitfinex/quotes_BTCUSD_20251016
["timestamp","ask_amount","ask_price","bid_price","bid_amount"]
[1760607695604,0.195,110050.0,110040.0,0.18175209]
[1760607695841,0.145,110050.0,110040.0,0.18175209]
[1760607696066,0.06,110050.0,110040.0,0.18175209]
[1760607696925,0.24173557,110050.0,110030.0,0.1817686]
[1760607697367,0.69893168,110050.0,110030.0,0.1817686]
[1760607697593,0.18177752,110030.0,110010.0,0.25354054]
[1760607697826,0.75988686,110030.0,110010.0,0.25354054]
[1760607698259,0.6517686,110030.0,110020.0,0.19996363]
[1760607698461,0.6517686,110030.0,110020.0,0.18178512]
[1760607698672,0.47,110030.0,110020.0,0.18178512]
[1760607698888,3.5654266,110030.0,110020.0,0.18178512]
[1760607699100,2.913658,110020.0,110010.0,0.18184165]
[1760607699307,0.12,110020.0,110010.0,0.18184165]
[1760607699791,1.08989446,110020.0,110010.0,4e-05]
[1760607700001,1.08989446,110020.0,110010.0,0.18184165]
[1760607700002,0.64178512,110020.0,110010.0,0.18184165]
[1760607700207,0.04,110020.0,110010.0,0.18184165]
[1760607700425,0.22178512,110020.0,110010.0,0.18184165]
[1760607701496,0.04,110020.0,110010.0,0.18184165]
[1760607702861,0.04,110020.0,110010.0,0.2072653]
[1760607703060,0.04,110020.0,110010.0,0.18184165]
[1760607703271,0.04,110020.0,110010.0,0.62995099]
[1760607703925,0.04,110020.0,110010.0,0.18184165]
[1760607704339,0.04,110020.0,110010.0,0.62995099]
[1760607704755,0.04,110020.0,110010.0,0.800818]
[1760607704959,0.04,110020.0,110010.0,0.898258]
[1760607705586,0.04,110020.0,110010.0,0.45014866]
[1760607705794,0.04,110020.0,110010.0,0.898258]
[1760607706002,0.04,110020.0,110010.0,0.45014866]
[1760607706226,0.04,110020.0,110010.0,0.27153177]
[1760607706448,0.04,110020.0,110010.0,0.71964111]
[1760607710885,0.04,110020.0,110010.0,0.27153177]
[1760607711089,0.04,110020.0,110010.0,0.71964111]
[1760607712609,0.04,110020.0,110010.0,0.27153177]
[1760607713042,0.04,110020.0,110010.0,0.29334884]
[1760607713259,0.04,110020.0,110010.0,0.74145818]
[1760607713882,0.04,110020.0,110010.0,0.29334884]
[1760607714307,0.04,110020.0,110010.0,0.74145818]
[1760607714744,0.04,110020.0,110010.0,0.77764046]
[1760607714745,1e-08,110020.0,110010.0,0.77764046]
[1760607714964,1e-08,110020.0,110010.0,1.11764046]
[1760607715201,0.025,110070.0,110060.0,0.18171906]
[1760607715445,3.71469367,110080.0,110070.0,0.18170255]
[1760607715675,3.5102082,110080.0,110070.0,0.18170255]
[1760607715883,0.14844086,110080.0,110070.0,0.18170255]
[1760607716096,0.93541987,110080.0,110070.0,0.18170255]
[1760607716539,0.59541987,110080.0,110070.0,0.18170255]
[1760607716965,0.93541516,110080.0,110070.0,0.18170255]
[1760607717389,3.84907038,110080.0,110060.0,0.18171906]
[1760607717606,2.913658,110060.0,110050.0,0.18171945]
[1760607717838,3.50677229,110060.0,110050.0,0.18171945]
[1760607718067,2.913658,110050.0,110040.0,0.25345876]
[1760607718268,0.57477838,110050.0,110040.0,0.25345876]
[1760607718475,3.49677168,110050.0,110040.0,0.18175209]
[1760607719307,3.49835464,110050.0,110040.0,0.18175209]
[1760607719718,3.49677168,110050.0,110040.0,0.18175209]
[1760607720124,3.04866383,110050.0,110040.0,0.18175209]
[1760607720332,3.48843638,110050.0,110040.0,0.18175209]
[1760607720536,0.12666904,110050.0,110040.0,0.18175209]
[1760607720770,0.11,110050.0,110040.0,0.18175209]
[1760607721206,0.11,110050.0,110040.0,0.22718547]
[1760607721450,1e-08,110050.0,110040.0,0.62986143]
[1760607721658,1e-08,110050.0,110040.0,0.81679155]
[1760607721868,1e-08,110050.0,110040.0,1.30108317]
[1760607722296,1e-08,110070.0,110060.0,0.18171906]
[1760607722503,1e-08,110070.0,110060.0,0.81675852]
[1760607722504,0.14000001,110070.0,110060.0,0.81675852]
[1760607722713,0.14000001,110070.0,110060.0,0.9064406]
[1760607723786,0.00050209,110080.0,110070.0,0.18170255]
[1760607724002,0.02050209,110080.0,110070.0,0.71950201]
[1760607724242,0.02109832,110080.0,110070.0,0.71950201]
[1760607724494,0.0002,110100.0,110090.0,0.18166954]
[1760607724630,0.1102,110100.0,110090.0,0.66611296]
[1760607725295,0.1102,110100.0,110090.0,0.75580308]
[1760607726575,0.1102,110100.0,110090.0,0.18166954]
[1760607727277,0.1102,110100.0,110090.0,0.62977888]
[1760607727748,0.1102,110100.0,110090.0,0.18166954]
[1760607728434,0.29185304,110100.0,110080.0,0.1816753]
[1760607728672,0.18166954,110090.0,110070.0,0.18168973]
[1760607728903,0.13,110090.0,110080.0,0.18168604]
[1760607729793,0.18168604,110080.0,110060.0,0.19080501]
[1760607730028,0.32168604,110080.0,110060.0,0.18171171]
[1760607730265,0.14,110080.0,110070.0,0.1998728]
[1760607730495,0.14,110080.0,110070.0,0.18170255]
[1760607731834,0.32168604,110080.0,110070.0,0.18170255]
[1760607732561,0.32168604,110080.0,110060.0,0.18171906]
[1760607732788,0.14,110080.0,110070.0,0.1998728]
[1760607733019,0.14,110080.0,110070.0,0.18170255]
[1760607733933,0.14,110080.0,110060.0,0.18170991]
[1760607734209,0.33077203,110080.0,110060.0,0.18171332]
[1760607734436,0.33077203,110080.0,110070.0,0.18170255]
[1760607734675,0.33077203,110080.0,110070.0,0.18174255]
[1760607735607,0.14,110080.0,110070.0,0.18174255]
[1760607736253,0.04,110080.0,110070.0,0.18174255]
[1760607736484,0.22168604,110080.0,110070.0,0.18174255]
[1760607737365,0.04,110080.0,110070.0,0.18174255]
[1760607737602,0.04,110080.0,110070.0,0.27142463]
[1760607738497,0.04,110080.0,110070.0,0.18174255]
[1760607738736,0.22168604,110080.0,110070.0,4e-05]
[1760607739164,4.16123158,110080.0,110070.0,4e-05]
[1760607739399,4.20570105,110080.0,110070.0,4e-05]
[1760607739632,4.2300898,110080.0,110070.0,4e-05]
[1760607740539,4.2300898,110080.0,110070.0,0.18174255]
[1760607740540,0.05952494,110080.0,110070.0,0.18174255]
[1760607740778,0.04,110080.0,110070.0,0.18174255]
[1760607741206,0.22168604,110080.0,110070.0,4e-05]
[1760607742059,0.22168604,110080.0,110070.0,0.18174255]
[1760607742707,0.04,110080.0,110070.0,0.18174255]
[1760607743366,0.22168604,110080.0,110070.0,0.18174255]
[1760607743576,0.04,110080.0,110070.0,0.18174255]
[1760607743999,0.22168604,110080.0,110070.0,0.18174255]
[1760607744630,0.04,110080.0,110070.0,0.18174255]
[1760607745936,0.04,110080.0,110070.0,0.27142463]
[1760607746146,0.04,110080.0,110070.0,0.18174255]
[1760607747024,0.04,110080.0,110070.0,0.86763009]
[1760607747253,0.04,110080.0,110070.0,0.18174255]
[1760607747678,0.04,110080.0,110070.0,0.18178255]
[1760607749191,0.00059614,110090.0,110080.0,0.18168604]
[1760607749404,0.13059614,110090.0,110080.0,0.18168604]
[1760607750286,0.13059614,110090.0,110080.0,1.04694578]
[1760607750504,0.13059614,110090.0,110080.0,1.0541837]
[1760607751637,0.13059614,110090.0,110080.0,0.27141616]
[1760607752333,0.13059614,110090.0,110080.0,0.9573037]
[1760607755507,0.0002,110100.0,110090.0,0.18166954]
[1760607755740,0.0502,110100.0,110090.0,1.14380928]
[1760607755960,0.05079607,110100.0,110090.0,1.14380928]
[1760607757469,0.05079607,110100.0,110090.0,1.17999156]
[1760607758546,0.05079607,110100.0,110090.0,1.18003156]
[1760607758772,0.05079607,110100.0,110090.0,1.19200056]
[1760607758984,0.0002,110130.0,110090.0,1.19200056]
[1760607759197,0.05035059,110130.0,110120.0,0.86750759]
[1760607759418,0.05023025,110130.0,110120.0,0.95718967]
[1760607759655,0.05023025,110130.0,110120.0,1.04687979]
[1760607760112,0.0252,110150.0,110140.0,0.18158707]
[1760607760327,0.0252,110150.0,110140.0,0.86747461]
[1760607760328,0.1352,110150.0,110140.0,0.86747461]
[1760607760541,0.1352,110150.0,110140.0,0.95716473]
[1760607760759,0.1352,110150.0,110140.0,1.04684681]
[1760607760977,0.1352,110150.0,110140.0,0.36095927]
[1760607761251,0.1352,110150.0,110140.0,0.36807719]
[1760607761479,0.1352,110150.0,110140.0,1.05396473]
[1760607762125,1e-08,110150.0,110140.0,1.09014701]
[1760607762583,1e-08,110160.0,110150.0,0.21775286]
[1760607762792,0.13000001,110160.0,110150.0,0.99333052]
[1760607763007,0.13000001,110160.0,110150.0,1.0830126]
[1760607763454,0.0002,110170.0,110160.0,0.21773638]
[1760607763677,0.03035051,110170.0,110160.0,1.09007404]
[1760607763887,0.00028,110180.0,110170.0,0.5577199]
[1760607764111,0.0502,110190.0,110180.0,0.21770342]
[1760607764330,0.1802,110190.0,110180.0,1.09004108]
[1760607764546,0.17917218,110190.0,110180.0,1.08824234]
[1760607765415,0.17917218,110190.0,110180.0,0.4023548]
[1760607765640,0.17917218,110190.0,110180.0,0.95530006]
[1760607765864,0.18453213,110190.0,110180.0,1.05202006]
[1760607766791,0.18453213,110190.0,110180.0,0.26941252]
[1760607767003,0.18453213,110190.0,110180.0,1.05202006]
[1760607767242,0.18453213,110190.0,110180.0,0.36613252]
[1760607767457,0.18453213,110190.0,110180.0,0.95530006]
[1760607767680,0.18453213,110190.0,110180.0,0.1797224]
[1760607768554,0.18453213,110190.0,110180.0,0.18152114]
[1760607768764,0.3660368,110190.0,110180.0,0.18152114]
[1760607768981,0.3660368,110190.0,110160.0,0.1906318]
[1760607769197,0.0041696,110170.0,110160.0,0.1906318]
[1760607769412,0.1341696,110170.0,110160.0,0.1815541]
[1760607771139,0.1341696,110170.0,110160.0,0.18140477]
[1760607771345,0.1341696,110170.0,110150.0,0.25332268]
[1760607771576,0.31153762,110170.0,110160.0,0.01815541]
[1760607771800,0.18512837,110160.0,110150.0,0.00015051]
[1760607772012,0.32512837,110160.0,110150.0,0.00015051]
[1760607772236,0.00021537,110150.0,110140.0,0.18158703]
[1760607772471,0.1031942,110150.0,110140.0,0.18158703]
[1760607773830,0.1031942,110150.0,110140.0,0.18258703]
[1760607774044,0.1031942,110150.0,110140.0,0.27226911]
[1760607774692,0.1031942,110150.0,110140.0,0.95815665]
[1760607774903,0.1031942,110150.0,110140.0,1.18062905]
[1760607775788,0.1031942,110150.0,110140.0,1.52062905]
[1760607776002,0.04917218,110190.0,110180.0,0.18152114]
[1760607776213,0.17761173,110190.0,110180.0,0.18152114]
[1760607777930,0.17761173,110190.0,110180.0,0.90371456]
[1760607778162,0.16932266,110190.0,110180.0,0.90371456]
[1760607778372,0.16932266,110190.0,110180.0,0.21782702]
[1760607778588,0.16932266,110190.0,110180.0,0.18152114]
[1760607778816,0.16932266,110190.0,110180.0,0.9570988]
[1760607779035,0.16932266,110190.0,110180.0,0.99328108]
[1760607779486,0.16932266,110190.0,110180.0,0.99428108]
[1760607781018,1e-08,110190.0,110180.0,1.33428108]
[1760607781234,1e-08,110200.0,110190.0,0.52150467]
[1760607781451,0.00850416,110220.0,110210.0,0.21765401]
[1760607781671,0.1402,110220.0,110210.0,1.08979167]
[1760607781925,0.14436677,110220.0,110210.0,1.08979167]
[1760607782615,0.14436677,110220.0,110210.0,1.09079167]
[1760607782837,0.14436677,110220.0,110210.0,1.18047375]
[1760607784402,0.14436677,110220.0,110210.0,1.18051375]
[1760607784824,0.14436677,110220.0,110210.0,1.09283167]
[1760607785692,0.18144779,110230.0,110210.0,0.27420185]
[1760607785932,0.30989176,110230.0,110220.0,0.18145527]
[1760607786145,0.12845296,110230.0,110220.0,0.18145527]
[1760607786355,0.30989176,110230.0,110210.0,4e-05]
[1760607786582,0.18145527,110220.0,110210.0,4e-05]
[1760607786801,0.18145527,110220.0,110210.0,0.00104]
[1760607786802,0.30975776,110220.0,110210.0,0.00104]
[1760607787012,0.30975776,110220.0,110210.0,4e-05]
[1760607787013,0.64975776,110220.0,110210.0,4e-05]
[1760607787246,1.3356453,110220.0,110210.0,4e-05]
[1760607787461,4.2853783,110220.0,110210.0,4e-05]
[1760607787679,3.59846146,110220.0,110210.0,0.00104]
[1760607787912,0.07946389,110220.0,110210.0,0.18251173]
[1760607788150,0.06,110220.0,110210.0,0.18151173]
[1760607788629,0.06,110220.0,110210.0,0.18251173]
[1760607789320,0.06,110220.0,110210.0,0.18151173]
[1760607789542,0.06,110220.0,110210.0,0.18351173]
[1760607789817,0.06,110220.0,110210.0,0.18251173]
[1760607790313,0.24145527,110220.0,110210.0,0.00104]
[1760607790557,3.84100081,110220.0,110210.0,4e-05]
[1760607791045,0.24145527,110220.0,110210.0,0.00104]
[1760607791289,0.06,110220.0,110210.0,0.2006589]
[1760607791557,0.24145527,110220.0,110210.0,4e-05]
[1760607791787,0.24145527,110220.0,110210.0,0.00104]
[1760607792023,0.24145527,110220.0,110210.0,0.18251173]
[1760607792320,0.68685431,110220.0,110210.0,0.00204]
[1760607792548,0.24145527,110220.0,110210.0,0.00104]
[1760607792772,0.24145527,110220.0,110210.0,0.18251173]
[1760607793896,0.24145527,110220.0,110210.0,0.00104]
[1760607794131,0.24145527,110220.0,110210.0,0.01684662]
[1760607794366,0.24145527,110220.0,110210.0,0.19831835]
[1760607794581,0.24145527,110220.0,110210.0,0.00104]
[1760607794794,0.24145527,110220.0,110210.0,0.2006589]
[1760607795242,0.06,110220.0,110210.0,0.2006589]
[1760607795683,0.06,110220.0,110210.0,0.18251173]
[1760607796415,0.24145527,110220.0,110210.0,0.18251173]
[1760607797546,0.06,110220.0,110210.0,0.18251173]
[1760607797992,0.24145527,110220.0,110210.0,0.18251173]
[1760607798444,0.06,110220.0,110210.0,0.18251173]
[1760607800063,0.06,110220.0,110210.0,0.00104]
[1760607800302,0.24145527,110220.0,110210.0,0.01818717]
[1760607800758,0.24145527,110220.0,110210.0,0.01918717]
[1760607801189,0.06,110220.0,110210.0,0.271411]
[1760607801412,0.06,110220.0,110210.0,0.84910317]
[1760607801651,0.06,110220.0,110210.0,0.94078525]
[1760607802324,0.06,110220.0,110210.0,0.94178525]
[1760607802543,0.06,110220.0,110210.0,0.93978525]
[1760607802779,0.06,110220.0,110210.0,0.94178525]
[1760607802999,0.06,110220.0,110210.0,0.75578317]
[1760607803227,0.06834399,110220.0,110210.0,0.71960089]
[1760607803467,0.06,110220.0,110210.0,0.71860089]
[1760607803968,0.06,110220.0,110210.0,0.72060089]
[1760607804419,0.06,110220.0,110210.0,0.27520185]
[1760607804644,0.06834847,110220.0,110210.0,0.18551173]
[1760607805581,0.06834847,110220.0,110210.0,0.18351173]
[1760607805800,0.07931853,110230.0,110210.0,0.18451173]
[1760607806044,0.2160278,110230.0,110220.0,0.19960079]
[1760607806273,0.2160278,110230.0,110220.0,0.18145527]
[1760607806934,0.2160278,110230.0,110210.0,0.18251173]
[1760607807148,0.2160278,110230.0,110220.0,0.01814552]
[1760607807375,0.2160278,110230.0,110220.0,0.19960079]
[1760607807612,0.2160278,110230.0,110210.0,0.18251173]
[1760607807823,0.65541637,110240.0,110220.0,0.23578307]
[1760607807824,0.0195235,110240.0,110220.0,0.23578307]
[1760607808053,0.0002,110250.0,110240.0,0.37618228]
[1760607808269,0.0002,110250.0,110240.0,1.53809283]
[1760607808493,0.0002,110260.0,110250.0,0.55758817]
[1760607808716,0.0002,110260.0,110250.0,0.64727025]
[1760607808985,1e-08,110300.0,110290.0,0.55752238]
[1760607809228,0.00015037,110300.0,110290.0,1.09261154]
[1760607809455,0.00015036,110300.0,110290.0,1.09261154]
[1760607809678,0.0718321,110330.0,110320.0,0.18129079]
[1760607809895,0.1923332,110330.0,110320.0,0.18129079]
[1760607810114,0.1205811,110330.0,110320.0,0.18129079]
[1760607810985,0.1205811,110330.0,110320.0,0.18329079]
[1760607811427,0.1205811,110330.0,110320.0,0.18229079]
[1760607811674,0.1205811,110330.0,110320.0,0.15829079]
[1760607811889,0.1205811,110330.0,110320.0,0.17641986]
[1760607812098,0.30185545,110330.0,110320.0,0.02012907]
[1760607812536,0.64185545,110330.0,110320.0,0.002]
[1760607813216,0.64185545,110330.0,110320.0,0.001]
[1760607813435,0.64185545,110330.0,110320.0,0.002]
[1760607813672,4.00091249,110330.0,110320.0,0.002]
[1760607813938,0.18130722,110310.0,110300.0,0.01813236]
[1760607814174,0.18130722,110310.0,110290.0,0.18133968]
[1760607814175,0.29880722,110310.0,110290.0,0.18133968]
[1760607814400,0.29880722,110310.0,110300.0,0.01813236]
[1760607814613,0.181332,110300.0,110280.0,0.63580904]
[1760607814832,0.311332,110300.0,110280.0,0.81518124]
[1760607815049,0.31132366,110300.0,110290.0,0.1813401]
[1760607815469,0.31132366,110300.0,110290.0,0.1823401]
[1760607815693,0.13,110300.0,110290.0,0.1823401]
[1760607815922,0.13,110300.0,110290.0,0.1813401]
[1760607816143,0.31132366,110300.0,110290.0,0.1813401]
[1760607816568,0.13,110300.0,110290.0,0.1813401]
[1760607816796,0.31132366,110300.0,110280.0,0.72549916]
[1760607817011,0.13,110300.0,110290.0,0.73656327]
[1760607817245,0.0005811,110330.0,110320.0,0.55747307]
[1760607817460,0.0605811,110330.0,110320.0,0.27098091]
[1760607817696,0.0605811,110330.0,110320.0,0.18129079]
[1760607818405,0.0605811,110330.0,110320.0,0.18229079]
[1760607818638,0.0605811,110330.0,110320.0,0.18129079]
[1760607819087,0.0605811,110330.0,110320.0,0.18229079]
[1760607819325,0.0605811,110330.0,110320.0,0.18429079]
[1760607819761,0.06652553,110330.0,110320.0,0.18429079]
[1760607819984,0.06652553,110330.0,110320.0,0.71737995]
[1760607820204,0.06652553,110330.0,110320.0,0.27298091]
[1760607820427,0.54544899,110360.0,110340.0,0.18125793]
[1760607820645,0.59559929,110360.0,110350.0,0.01812415]
[1760607820863,0.59559929,110360.0,110350.0,0.19936565]
[1760607821071,0.59717786,110360.0,110340.0,0.18125793]
[1760607821300,0.00157857,110360.0,110350.0,1.62778823]
[1760607821548,0.19029059,110420.0,110390.0,0.18117413]
[1760607821789,0.12854317,110420.0,110410.0,0.18114301]
[1760607822012,0.12183446,110420.0,110410.0,0.18114301]
[1760607822251,0.12025664,110420.0,110410.0,0.18114301]
[1760607823198,0.12025664,110420.0,110410.0,0.18214301]
[1760607823419,0.12025664,110420.0,110410.0,0.21847288]
[1760607823636,0.12125664,110420.0,110410.0,0.21747288]
[1760607823854,0.12025664,110420.0,110410.0,0.21747288]
[1760607824096,0.12025664,110420.0,110410.0,0.21851288]
[1760607824338,0.12015027,110420.0,110410.0,0.18318301]
[1760607825030,0.04772962,110420.0,110410.0,1.09445445]
[1760607825936,0.04772962,110420.0,110410.0,1.09345445]
[1760607826151,0.04772962,110420.0,110410.0,1.09445445]
[1760607826364,0.04772962,110420.0,110410.0,1.09345445]
[1760607826581,0.04772962,110420.0,110410.0,1.16367786]
[1760607826845,0.05307283,110420.0,110410.0,1.16267786]
[1760607827047,0.05307283,110420.0,110410.0,1.16467786]
[1760607827263,0.05307283,110420.0,110410.0,1.16667786]
[1760607827696,0.05307283,110420.0,110410.0,0.27487313]
[1760607827919,0.05307283,110420.0,110410.0,0.72027217]
[1760607828162,0.05307283,110420.0,110410.0,1.06027217]
[1760607829308,0.05307283,110420.0,110410.0,1.09645445]
[1760607830439,0.05307283,110420.0,110410.0,0.65105541]
[1760607830729,0.05838011,110420.0,110410.0,0.27487313]
[1760607830973,0.05307283,110420.0,110410.0,0.09373012]
[1760607831190,0.05307283,110420.0,110410.0,0.27487313]
[1760607831621,0.23419943,110420.0,110410.0,0.00204]
[1760607831837,0.23419943,110420.0,110410.0,0.00304]
[1760607831838,0.67959847,110420.0,110410.0,0.00304]
[1760607832056,0.23419943,110420.0,110410.0,0.00304]
[1760607832286,0.05307283,110420.0,110410.0,0.18418301]
[1760607832526,0.05307283,110420.0,110410.0,0.27087313]
[1760607832745,0.05307283,110420.0,110410.0,0.27187313]
[1760607832985,0.23419943,110420.0,110410.0,0.18218301]
[1760607833221,0.05307283,110420.0,110410.0,0.18218301]
[1760607833686,0.23419943,110420.0,110410.0,0.18218301]
[1760607833910,0.23419943,110420.0,110410.0,0.00104]
[1760607834144,0.23419943,110420.0,110410.0,0.20029731]
[1760607834399,0.23419943,110420.0,110410.0,0.00104]
[1760607834658,0.23419943,110420.0,110410.0,0.0191543]
[1760607835134,0.67959847,110420.0,110410.0,0.0191543]
[1760607835363,0.23419943,110420.0,110410.0,0.00104]
[1760607835604,0.23419943,110420.0,110410.0,0.0191543]
[1760607835819,4.01932738,110420.0,110410.0,0.0191543]
[1760607836082,4.01932738,110420.0,110350.0,0.25294603]
[1760607836083,0.19024977,110390.0,110370.0,0.08987296]
[1760607836311,0.13,110390.0,110370.0,0.08987296]
[1760607836527,0.18119224,110380.0,110370.0,0.01812086]
[1760607836774,0.18120866,110370.0,110360.0,0.0181225]
[1760607836997,0.30120866,110370.0,110360.0,0.0181225]
[1760607837462,0.30120866,110370.0,110360.0,0.19934758]
[1760607837679,0.30120866,110370.0,110360.0,0.18137535]
[1760607837899,0.30120866,110370.0,110360.0,0.19949785]
[1760607838534,0.30120866,110370.0,110360.0,0.18137535]
[1760607838992,0.30120866,110370.0,110360.0,0.18237535]
[1760607839207,0.12,110370.0,110360.0,0.18237535]
[1760607839432,0.30120866,110370.0,110360.0,0.18237535]
[1760607840291,0.12,110370.0,110360.0,0.18237535]
[1760607840522,0.30120866,110370.0,110360.0,0.18237535]
[1760607840984,0.12,110370.0,110360.0,0.18237535]
[1760607841239,0.12,110370.0,110360.0,0.66413604]
[1760607841492,0.00296953,110380.0,110370.0,0.55739094]
[1760607841741,0.00296953,110380.0,110370.0,1.00278998]
[1760607842470,0.0717521,110410.0,110400.0,0.18115942]
[1760607842750,0.1917521,110410.0,110400.0,0.2173417]
[1760607842992,0.12,110410.0,110400.0,0.70259249]
[1760607843908,0.12,110410.0,110400.0,0.68703384]
[1760607844150,0.12,110410.0,110400.0,1.13243288]
[1760607844399,0.12,110410.0,110400.0,0.68703384]
[1760607844626,0.12,110410.0,110400.0,1.13243288]
[1760607844852,0.12,110410.0,110400.0,1.13443288]
[1760607845312,0.12,110410.0,110400.0,0.68803384]
[1760607845552,0.12,110410.0,110400.0,1.13243288]
[1760607845777,0.18,110440.0,110430.0,0.1811102]
[1760607846005,0.08658206,110450.0,110440.0,0.1810938]
[1760607846257,0.22489805,110450.0,110440.0,0.1810938]
[1760607846489,0.15314595,110450.0,110440.0,0.1810938]
[1760607847194,0.15364655,110450.0,110440.0,0.1810938]
[1760607849116,0.14375318,110450.0,110440.0,0.71618296]
[1760607849336,0.14375318,110450.0,110440.0,0.35248342]
[1760607849578,0.00157704,110470.0,110440.0,1.27946378]
[1760607849813,8e-05,110480.0,110470.0,0.18104462]
[1760607850052,0.14856347,110480.0,110470.0,0.18104462]
[1760607850770,0.14856347,110480.0,110470.0,0.71613378]
[1760607850989,0.14856347,110480.0,110470.0,0.30709639]
[1760607850990,0.14856708,110480.0,110470.0,0.30709639]
[1760607851672,0.14023015,110480.0,110470.0,0.30709639]
[1760607851897,0.14023015,110480.0,110470.0,0.78867771]
[1760607852363,0.14023015,110480.0,110470.0,0.34427867]
[1760607852591,0.14023015,110480.0,110470.0,0.75331606]
[1760607852832,0.14023015,110480.0,110470.0,0.30791702]
[1760607853085,0.14023015,110480.0,110470.0,0.30891702]
[1760607853326,0.14616248,110480.0,110470.0,0.30891702]
[1760607853557,0.14616248,110480.0,110470.0,1.32967411]
[1760607853794,0.14616248,110480.0,110470.0,0.81989042]
[1760607854074,0.14616248,110480.0,110470.0,1.50264751]
[1760607854313,0.14616248,110480.0,110470.0,0.64991702]
[1760607854539,0.14616248,110480.0,110470.0,0.99071411]
[1760607855451,1e-08,110480.0,110470.0,1.33071411]
[1760607855682,4.59061429,110500.0,110490.0,0.52101185]
[1760607855937,4.21525676,110500.0,110490.0,1.46099988]
[1760607856158,3.84376679,110500.0,110490.0,1.49718216]
[1760607856395,3.5819631,110500.0,110490.0,1.42336134]
[1760607856687,3.23884426,110500.0,110490.0,1.44865647]
[1760607856922,3.16747455,110500.0,110490.0,1.44865647]
[1760607857158,2.6686176,110500.0,110490.0,1.45065647]
[1760607857388,2.64140995,110500.0,110490.0,1.45065647]
[1760607857622,2.58690036,110500.0,110490.0,1.42336134]
[1760607857855,2.03215514,110500.0,110490.0,1.42536134]
[1760607858085,1.80955374,110500.0,110490.0,0.74760425]
[1760607858315,1.74223905,110500.0,110490.0,1.42836134]
[1760607858551,1.24283143,110500.0,110490.0,1.42536134]
[1760607858784,0.96515258,110500.0,110490.0,1.42536134]
[1760607859019,0.82399262,110500.0,110490.0,1.42536134]
[1760607859276,0.1533573,110500.0,110490.0,1.45165647]
[1760607859523,0.0002,110540.0,110530.0,0.55712862]
[1760607859776,0.04035012,110540.0,110530.0,1.42325583]
[1760607860012,0.01698897,110550.0,110540.0,0.55711226]
[1760607860268,0.01644997,110550.0,110540.0,0.64680238]
[1760607860760,0.01644997,110550.0,110540.0,1.32755947]
[1760607861229,0.01644997,110550.0,110540.0,0.6649371]
[1760607861454,0.0002,110570.0,110560.0,0.55707953]
[1760607861686,0.0002,110570.0,110560.0,2.10396383]
[1760607861931,8e-05,110620.0,110560.0,2.10396383]
[1760607861932,8e-05,110620.0,110600.0,1.20158891]
[1760607862166,0.13058042,110620.0,110610.0,1.1011665]
[1760607862398,0.13058042,110620.0,110610.0,1.42308496]
[1760607862860,0.13058042,110620.0,110610.0,1.32744496]
[1760607863133,0.13058042,110620.0,110610.0,0.08969012]
[1760607863363,0.16171737,110620.0,110610.0,0.10777166]
[1760607863600,0.31137955,110620.0,110610.0,0.001]
[1760607864528,0.18081604,110610.0,110590.0,0.01808481]
[1760607864759,0.31081604,110610.0,110590.0,0.10777493]
[1760607864986,0.13,110610.0,110590.0,0.10777493]
[1760607865215,0.31081563,110610.0,110590.0,0.10777493]
[1760607865455,0.13,110610.0,110600.0,0.08969012]
[1760607865946,0.31081547,110610.0,110600.0,0.08969012]
[1760607866419,0.13,110610.0,110600.0,0.08969012]
[1760607866666,0.13,110610.0,110600.0,1.02303113]
[1760607866907,0.00058042,110620.0,110610.0,0.55699775]
[1760607867141,0.00058042,110620.0,110610.0,1.32744496]
[1760607867375,0.00058042,110620.0,110610.0,1.42304496]
[1760607867607,0.01292536,110640.0,110630.0,1.23772215]
[1760607867844,1e-08,110640.0,110630.0,1.33332215]
[1760607868087,0.0717521,110710.0,110690.0,0.18067498]
[1760607868088,0.0727522,110710.0,110690.0,0.18067498]
[1760607868329,0.0727522,110710.0,110700.0,1.3453648]
[1760607868330,0.1819021,110710.0,110700.0,1.3453648]
[1760607868570,0.00015,110710.0,110700.0,1.32729796]
[1760607868850,0.21286812,110750.0,110700.0,1.32729796]
[1760607868851,0.11286812,110750.0,110700.0,1.33810002]
[1760607869123,0.24336773,110750.0,110740.0,1.3272327]
[1760607869651,0.24336773,110750.0,110740.0,0.30647561]
[1760607869856,0.24336773,110750.0,110740.0,0.95105042]
[1760607870095,0.24336773,110750.0,110740.0,1.3272327]
[1760607870334,0.24336773,110750.0,110740.0,0.27029333]
[1760607870574,0.2677045,110750.0,110740.0,0.08969012]
[1760607870802,0.24336773,110750.0,110740.0,0.09069012]
[1760607871029,0.24336773,110750.0,110740.0,0.001]
[1760607871250,0.24326136,110750.0,110740.0,0.001]
[1760607871484,0.24326136,110750.0,110740.0,0.09069012]
[1760607871718,0.2675875,110750.0,110740.0,0.001]
[1760607871953,0.58326136,110750.0,110730.0,0.18061724]
[1760607872215,0.58326136,110750.0,110740.0,0.01806032]
[1760607872709,0.24326136,110750.0,110740.0,1.2556029]
[1760607872945,0.24326136,110750.0,110740.0,1.23754258]
[1760607873178,3.09413265,110820.0,110780.0,0.68075709]
[1760607873414,3.09413265,110820.0,110810.0,1.20124621]
[1760607873415,0.11014996,110820.0,110810.0,1.20124621]
[1760607873645,0.00157253,110830.0,110820.0,0.52047283]
[1760607873876,0.00157253,110830.0,110820.0,1.2374122]
[1760607874109,0.0002,110870.0,110830.0,0.18946699]
[1760607874336,0.14069952,110870.0,110860.0,0.68075709]
[1760607874565,0.14,110870.0,110860.0,0.95085493]
[1760607874831,0.0717521,110950.0,110860.0,0.95085493]
[1760607875078,0.16246926,111060.0,110960.0,0.13092603]
[1760607875296,0.045,111170.0,110960.0,0.13092603]
[1760607875297,0.15733271,111160.0,111120.0,0.1799856]
[1760607875518,0.045,111170.0,111160.0,0.55610311]
[1760607875745,0.02504466,111200.0,111190.0,0.21605457]
[1760607875968,0.12022515,111200.0,111190.0,0.26369707]
[1760607876188,0.12022515,111200.0,111190.0,0.25490533]
[1760607876404,0.03377241,111200.0,111190.0,0.25490533]
[1760607876655,8e-05,111230.0,111210.0,0.17983994]
[1760607876865,8e-05,111230.0,111220.0,0.34]
[1760607877092,2.0,111250.0,111240.0,0.51979144]
[1760607877339,1.48837724,111250.0,111240.0,1.04469312]
[1760607877553,1.54531024,111250.0,111240.0,1.00757815]
[1760607877766,0.89731921,111250.0,111240.0,1.04805259]
[1760607877985,0.80687017,111250.0,111240.0,1.64748037]
[1760607878206,0.34298537,111250.0,111240.0,1.70679683]
[1760607878427,0.00991841,111300.0,111290.0,0.55589294]
[1760607878662,0.01227091,111310.0,111300.0,1.08077847]
[1760607878663,1e-08,111310.0,111300.0,1.08077847]